[Event "US Masters 2022"]
[Site "Charlotte"]
[Date "2022.11.27"]
[Round "7.9"]
[White "Cruz, Cristhian"]
[Black "Neef, Maximilian"]
[Result "1-0"]
[ECO "E94"]
[WhiteElo "2552"]
[BlackElo "2481"]
[Annotator "TA"]
[PlyCount "105"]
[EventDate "2022.11.23"]
[EventType "swiss"]
[EventCountry "USA"]
[SourceTitle "playchess.com"]
[Source "ChessBase"]
[SourceQuality "1"]
[TimeControl "5400+30"]

{[%evp 21,105,79,85,83,105,60,71,70,73,70,74,51,62,60,65,61,60,57,61,52,54,36,36,36,38,37,44,41,55,54,60,60,140,140,140,140,295,296,362,358,381,386,381,385,525,407,405,405,410,408,391,397,396,384,595,562,471,517,641,630,1200,1179,1169,1141,1266,1095,1681,959,959,871,1235,1237,1209,1206,1163,1205,1163,1036,29993,29994,29994,29995,29995,29996,29996,29997]} 1. d4 {[%emt 0:05:37]} Nf6 {[%emt 0:00:08]} 2. c4 {[%emt 0:00:34]} g6 {[%emt 0:00:05]} 3. Nc3 {[%emt 0:01:23]} Bg7 {[%emt 0:00:06]} 4. e4 {[%emt 0:01:06]} d6 {[%emt 0:00:06]} 5. Nf3 {[%emt 0:01:50]} O-O {[%emt 0:00:06]} 6. Be2 {[%emt 0:00:07]} Nbd7 {[%emt 0:00:24]} 7. O-O {[%emt 0:00:49]} e5 {[%emt 0:00:05]} 8. Qc2 {[%emt 0:01:21]} c6 {[%emt 0:03:29]} 9. Rd1 {[%emt 0:05:11]} Qe7 {[%emt 0:01:33]} 10. d5 {[%emt 0:01:06]} c5 {[%emt 0:00:47]} 11. Bg5 {[%emt 0:00:47]} h6 {[%emt 0:04:14]} 12. Bd2 {[%emt 0:02:00] E94: King's Indian: Classical: 6 Be2 e5 7 0-0: Various Black 7th moves.} Nh7 {[%emt 0:09:59] [#]} 13. g3 $146 {[%emt 0:07:45]} ({Predecessor:} 13. Qc1 f5 14. Bxh6 f4 15. Bxg7 Kxg7 16. Rd3 g5 17. h3 Ndf6 18. g4 fxg3 19. fxg3 Nh5 {0-1 (67) Malakhatko,V (2447)-Subhayan,K (2301) Dhaka 2021}) 13... Ng5 {[%emt 0:09:38]} 14. Nxg5 {[%emt 0:09:35] White is better.} hxg5 {[%emt 0:00:06]} 15. Qc1 {[%emt 0:00:11]} Bf6 {[%emt 0:01:25]} 16. Bg4 {[%emt 0:10:28]} Qd8 {[%emt 0:04:25]} 17. f3 {[%emt 0:04:45]} Be7 {[%emt 0:07:33]} 18. Qc2 {[%emt 0:01:18] White has more active pieces. The black rooks are badly placed.} Kg7 {[%emt 0:17:45]} 19. Rf1 {[%emt 0:03:44]} Rh8 {[%emt 0:04:52]} 20. Nd1 {[%emt 0:01:10]} a6 {[%emt 0:03:00]} 21. a3 {[%emt 0:05:42]} b5 {[%emt 0:03:49]} 22. Ne3 {[%emt 0:02:19]} Rb8 {[%emt 0:05:34]} 23. Rf2 {[%emt 0:05:15]} Nb6 {[%emt 0:04:10]} 24. b3 {[%emt 0:07:45]} (24. Ba5 {with more complications.} Bxg4 25. fxg4 Qc8 26. Raf1) 24... Bd7 {[%emt 0:01:13]} 25. a4 {[%emt 0:15:14]} bxa4 {[%emt 0:03:55]} 26. bxa4 {[%emt 0:00:07]} Be8 {[%emt 0:00:07] [#]} ({Black should play} 26... Bxg4 $14 27. Nxg4 Nd7) 27. Ba5 $1 $16 {[%emt 0:03:39] And now Qb1 would win.} Qc7 {[%emt 0:02:18]} 28. Qb1 {[%emt 0:00:33] Strongly threatening Rb2.} Qa7 $2 {[%emt 0:02:16] Loses the game.} (28... Nxd5 $16 {was necessary.} 29. Qe1 (29. Bxc7 Rxb1+ 30. Rxb1 Nxe3 $16) 29... Nb6) 29. Rb2 $18 {[%emt 0:00:12]} Nd7 {[%emt 0:04:23]} 30. Rxb8 {[%emt 0:00:34]} Qxb8 {[%emt 0:01:09]} 31. Qxb8 {[%emt 0:00:47]} Nxb8 {[%emt 0:00:01]} 32. Rb1 {[%emt 0:00:21]} Bd7 {[%emt 0:02:48]} 33. Bxd7 {[%emt 0:02:15]} Nxd7 {[%emt 0:00:01]} 34. Rb7 {[%emt 0:00:08]} Bd8 {[%emt 0:00:14]} 35. Rxd7 {[%emt 0:00:14]} Bxa5 {[%emt 0:00:03]} 36. Rxd6 {[%emt 0:00:14][%mdl 4096] Endgame KRB-KRN} Bc3 {[%emt 0:01:40]} 37. Kg2 {[%emt 0:00:19]} (37. Rxa6 Bd4 $11) 37... Rb8 {[%emt 0:01:03]} (37... Bd4 $142 38. Ng4 Ra8) 38. Rxa6 {[%emt 0:00:52]} Bd4 {[%emt 0:00:13]} 39. Ng4 {[%emt 0:00:07]} Rb2+ {[%emt 0:00:39]} 40. Kh3 {[%emt 0:00:15] Hoping for Ra7.} Kf8 {[%emt 0:03:57]} 41. Ra8+ {[%emt 0:00:19]} Kg7 {[%emt 0:00:20]} 42. Ra7 {[%emt 0:00:28]} Rb4 {[%emt 0:01:08]} 43. a5 {[%emt 0:02:51][%cal Ba4a5,Ba5a6][%mdl 32]} Rxc4 {[%emt 0:00:30]} 44. a6 {[%emt 0:00:05] d6 would kill now.} Rb4 {[%emt 0:00:32]} 45. Rc7 {[%emt 0:00:37]} Ra4 {[%emt 0:00:32]} 46. a7 {[%emt 0:00:29]} c4 {[%emt 0:00:04]} 47. d6 {[%emt 0:00:28] White wants to mate with d7.} Rxa7 {[%emt 0:00:55]} 48. d7 {[%emt 0:00:14]} ({Not} 48. Rxc4 Rd7 $16) 48... Rxc7 {[%emt 0:00:28]} 49. d8=Q {[%emt 0:00:07]} (49. d8=B $2 {[#] is the wrong capture.} c3 $1 50. Bxg5 (50. Bxc7 $2 {too greedy.} c2 $19) 50... f5 $19) 49... Rc6 {[%emt 0:00:27] [#]} 50. Nh6 $1 {[%emt 0:01:41][%mdl 512] White mates.} g4+ {[%emt 0:00:42]} (50... Rc7 51. Qxc7) 51. fxg4 {[%emt 0:00:12]} g5 {[%emt 0:00:17]} 52. Nf5+ {[%emt 0:00:15]} Kh7 {[%emt 0:00:09]} 53. Qf8 {[%emt 0:00:10] Weighted Error Value: White=0.08 (flawless) /Black=0.51} 1-0

[Event "US Masters 2022"]
[Site "Charlotte"]
[Date "2022.11.27"]
[Round "7.10"]
[White "Mardov, Dimitar"]
[Black "Jacobson, Brandon"]
[Result "0-1"]
[ECO "C50"]
[WhiteElo "2432"]
[BlackElo "2551"]
[Annotator "TA"]
[PlyCount "210"]
[EventDate "2022.11.23"]
[EventType "swiss"]
[EventCountry "USA"]
[SourceTitle "playchess.com"]
[Source "ChessBase"]
[SourceQuality "1"]
[TimeControl "5400+30"]

{[%evp 16,210,16,0,0,0,0,0,0,0,0,-6,-12,-22,-20,-79,-95,-89,-79,-82,-42,-37,-24,-26,-21,-81,-54,-49,-46,-42,-43,-44,-47,-41,-45,-43,-45,-50,-33,-45,-39,-48,-41,-60,-52,-56,-52,-53,-42,-62,-47,-69,-62,-54,-42,-55,-47,-116,-112,-103,-106,-143,-91,-118,-116,-116,-116,-116,0,0,0,0,0,0,-8,-8,0,0,0,0,0,0,0,0,0,0,0,0,0,0,0,0,0,-26,-27,-1262,-829,-1627,-1593,-1237,-372,-941,-513,-1685,-1718,-3286,-2582,-2497,-2593,-1458,-394,-393,-393,-672,-632,-1914,-1368,-29978,-29978,-29971,-4714,-29984,-29985,-29985,-29986,-29986,-29964,-29964,-29965,-29965,-29966,-29963,-29966,-29965,-29966,-29962,-29964,-29962,-29963,-29959,-29959,-29973,-29972,-29971,-29973,-29973,-29974,-29970,-29975,-29975,-29983,-29983,-29984,-29970,0,-29971,-29969,-1518,-1135,-29978,-29979,-29979,-29980,-29980,-29981,-29981,-29971,-29970,-29973,-29981,-29982,-29984,-29981,-29981,0,-29984,-29981,-29981,-29977,-29977,-29977,-29977,-29978,-29978,-29979,-29978,-29979,-29979,-29980,-29983,-29984,-29993,-29994,-29996,-29997,-29997,-29998]} 1. e4 {[%emt 0:00:02]} e5 {[%emt 0:00:52]} 2. Nf3 {[%emt 0:00:30]} Nc6 {[%emt 0:00:06]} 3. Bc4 {[%emt 0:00:15]} Nf6 {[%emt 0:00:54]} 4. d3 {[%emt 0:00:29]} Bc5 {[%emt 0:00:05]} 5. O-O {[%emt 0:02:01]} d6 {[%emt 0:00:38]} 6. a4 {[%emt 0:01:23]} a6 {[%emt 0:00:40]} 7. Re1 {[%emt 0:03:20]} O-O {[%emt 0:09:54]} 8. h3 {[%emt 0:00:55]} Ba7 {[%emt 0:03:58]} 9. Nbd2 {[%emt 0:02:35]} Nh5 {[%emt 0:03:46]} 10. Nf1 {[%emt 0:06:42]} Qf6 {[%emt 0:03:04]} 11. Be3 {[%emt 0:05:24]} Nf4 {[%emt 0:02:56]} 12. Ng3 {[%emt 0:05:19]} Be6 {[%emt 0:03:50]} 13. Nd2 {[%emt 0:13:46]} Qg6 {[%emt 0:12:06]} 14. Qf3 {[%emt 0:05:31]} Nd4 {[%emt 0:01:43]} 15. Bxd4 {[%emt 0:00:42]} (15. Qd1 $1 $11) 15... Bxd4 $17 {[%emt 0:00:04]} 16. c3 {[%emt 0:00:47]} Ba7 {[%emt 0:00:05]} 17. Kh2 {[%emt 0:07:45]} Kh8 {[%emt 0:06:27]} (17... Qg5 {seems wilder.} 18. Red1 h5 19. Nf5 Bxf5 20. exf5 Qxf5 21. Qxb7 Bxf2 22. Qe4 Qxe4 23. dxe4 h4) 18. Ne2 {[%emt 0:02:23]} Nxe2 {[%emt 0:01:54]} (18... Nh5 {keeps more tension.} 19. Ng3 Qg5 20. Rad1 Nf4) 19. Rxe2 {[%emt 0:00:53]} Bd7 {[%emt 0:02:08]} 20. Nf1 {[%emt 0:07:07]} (20. a5 $11 {remains equal.}) 20... f5 {[%emt 0:08:11]} 21. exf5 $1 {[%emt 0:00:41]} Qxf5 {[%emt 0:02:54]} 22. Qxf5 {[%emt 0:03:41]} Bxf5 {[%emt 0:00:35]} 23. Ne3 {[%emt 0:01:17]} Bg6 {[%emt 0:35:10]} 24. Rd1 {[%emt 0:01:24]} Bh5 {[%emt 0:00:00]} 25. f3 {[%emt 0:00:43]} c6 {[%emt 0:00:00]} 26. Bb3 {[%emt 0:01:09]} Rae8 {[%emt 0:00:00]} 27. Rde1 {[%emt 0:00:44]} Bb8 {[%emt 0:00:00]} 28. Kh1 {[%emt 0:00:32]} Bc7 {[%emt 0:00:00]} 29. Ng4 {[%emt 0:01:08]} Bg6 {[%emt 0:00:00]} 30. Bc2 {[%emt 0:01:56]} h5 {[%emt 0:00:00]} 31. Ne3 {[%emt 0:02:07]} Bh7 {[%emt 0:00:00]} 32. Nc4 {[%emt 0:02:23]} g5 {[%emt 0:00:00]} 33. a5 {[%emt 0:01:16]} Kg7 {[%emt 0:00:00]} 34. b4 {[%emt 0:00:17]} Bf5 {[%emt 0:00:00]} 35. Ne3 {[%emt 0:01:06]} Bd7 {[%emt 0:00:00]} 36. d4 {[%emt 0:03:27]} (36. Nc4 $15) 36... d5 $17 {[%emt 0:00:00]} 37. dxe5 {[%emt 0:07:13]} Rxe5 {[%emt 0:00:00]} 38. Bd3 {[%emt 0:03:14]} Rfe8 {[%emt 0:00:00]} (38... c5 $142 39. bxc5 Bxa5) 39. g4 {[%emt 0:00:42] [#]} h4 $1 {[%emt 0:00:00]} 40. Kg2 {[%emt 0:00:46]} Kf6 {[%emt 0:03:04]} 41. Kf1 {[%emt 0:00:43] [#]} R5e7 {[%emt 0:01:37]} (41... c5 $1 $17 42. c4 dxc4 43. Bxc4 Rd8) 42. Bf5 $11 {[%emt 0:01:49]} Be6 {[%emt 0:00:08]} 43. Bxe6 {[%emt 0:02:15]} Rxe6 {[%emt 0:00:02]} 44. Nf5 {[%emt 0:01:33]} Rxe2 {[%emt 0:00:57]} 45. Rxe2 {[%emt 0:00:04]} Rxe2 {[%emt 0:00:04]} 46. Kxe2 {[%emt 0:00:02]} Bb8 {[%emt 0:00:04]} 47. Nd4 {[%emt 0:01:13]} Bc7 {[%emt 0:05:10]} 48. Nb3 {[%emt 0:01:45]} b6 $1 {[%emt 0:00:19]} 49. axb6 {[%emt 0:01:01]} Bxb6 {[%emt 0:00:01]} 50. f4 {[%emt 0:00:40]} gxf4 {[%emt 0:00:06]} 51. Kf3 {[%emt 0:00:15]} Ke5 {[%emt 0:01:02]} 52. Nc1 {[%emt 0:00:29]} Be3 {[%emt 0:01:19]} 53. Nd3+ {[%emt 0:00:21]} Kd6 {[%emt 0:00:29]} 54. Nxf4 {[%emt 0:00:44]} Bd2 {[%emt 0:00:01]} 55. Ne2 $2 {[%emt 0:00:57][%mdl 8192]} (55. Nd3 $11) 55... c5 $19 {[%emt 0:00:06]} 56. g5 {[%emt 0:00:32]} Bxg5 {[%emt 0:00:15]} ({Stronger than} 56... cxb4 57. g6 Ke7 58. cxb4 $11) 57. Kg4 {[%emt 0:00:27]} Bd8 $2 {[%emt 0:00:20]} (57... Bd2 58. Kxh4 cxb4 59. cxb4 Bxb4) 58. Kf5 $2 {[%emt 0:00:21]} (58. Kf4) 58... Bb6 {[%emt 0:00:45]} 59. Nf4 {[%emt 0:00:35]} (59. Kg4 $142 Kc6 60. Kf3) 59... c4 $19 {[%emt 0:01:25]} 60. Ne2 {[%emt 0:00:34]} d4 {[%emt 0:00:40]} 61. cxd4 {[%emt 0:00:30]} Kd5 {[%emt 0:00:02]} 62. b5 {[%emt 0:00:30]} a5 $2 {[%emt 0:00:45]} (62... Bxd4 63. Nxd4 axb5 64. Nxb5 Kc5 65. Nc3 Kb4 66. Ne4 Kb3 67. Kg4) (62... axb5 63. Nc3+ Kc6) 63. Kf4 $19 {[%emt 0:00:26]} Bd8 {[%emt 0:00:44]} (63... Bxd4 $2 {perishes.} 64. Nxd4 Kxd4 65. b6 $19) 64. Kf5 $2 {[%emt 0:00:35]} (64. Kf3 Be7 65. Kf4) 64... Bc7 $19 {[%emt 0:00:28]} 65. Kg4 {[%emt 0:00:33]} Ke4 {[%emt 0:00:28]} 66. Kxh4 {[%emt 0:00:28]} Kd3 {[%emt 0:00:18]} 67. Nc1+ {[%emt 0:00:19]} Kc2 {[%emt 0:00:48]} (67... Kd2 $142 68. Na2 Kc2 69. Kg5 Kb2 70. Kf6 Kxa2 71. h4 c3 72. Kg6 c2 73. h5 a4 74. h6 c1=Q 75. Kg7 a3 76. h7 Qg1+ 77. Kf8 Qxd4 78. Kf7 Qd5+ 79. Kg6 Qe4+ 80. Kf7 Qxh7+ 81. Kf6 Kb3 82. Ke6 a2 83. Kd5 a1=Q 84. Kc6 Qa8+ 85. Kc5 Qf5+ 86. Kd4 Qae4#) 68. Kg4 {[%emt 0:00:38]} Kxc1 {[%emt 0:00:29]} 69. h4 {[%emt 0:00:04]} c3 {[%emt 0:00:28]} 70. h5 {[%emt 0:00:08]} Bf4 {[%emt 0:00:34]} 71. b6 {[%emt 0:01:10]} c2 {[%emt 0:00:12]} 72. h6 {[%emt 0:00:29]} Bxh6 {[%emt 0:00:35]} 73. b7 {[%emt 0:00:05]} Kd1 {[%emt 0:00:11]} 74. b8=Q {[%emt 0:00:07]} c1=Q {[%emt 0:01:34]} (74... c1=B $2 75. d5 $18) 75. Qb5 {[%emt 0:01:12]} Qf4+ {[%emt 0:00:00]} 76. Kh5 {[%emt 0:00:16]} Qh2+ {[%emt 0:00:00]} 77. Kg6 {[%emt 0:00:19]} Bd2 {[%emt 0:00:13]} 78. d5 {[%emt 0:00:57]} Qg2+ {[%emt 0:00:48]} 79. Kf7 {[%emt 0:00:36]} Qf3+ {[%emt 0:00:04]} 80. Kg6 {[%emt 0:00:30]} Qg4+ {[%emt 0:00:07]} 81. Kf6 {[%emt 0:00:38]} Bc3+ {[%emt 0:00:46]} 82. Kf7 {[%emt 0:00:12]} Qh5+ {[%emt 0:00:08]} 83. Kf8 {[%emt 0:00:26]} Qf3+ {[%emt 0:01:45]} 84. Kg8 {[%emt 0:00:14]} Qg4+ {[%emt 0:00:08]} 85. Kf7 {[%emt 0:00:20]} Qf5+ {[%emt 0:00:52]} 86. Ke8 {[%emt 0:00:39]} Qe4+ {[%emt 0:00:01]} 87. Kd7 {[%emt 0:00:41]} a4 {[%emt 0:00:05]} 88. d6 {[%emt 0:00:23]} Kc2 {[%emt 0:00:23]} 89. Qa6 {[%emt 0:01:06]} Kb3 {[%emt 0:00:39]} 90. Qb5+ {[%emt 0:00:31]} Qb4 {[%emt 0:00:33]} 91. Qd5+ {[%emt 0:00:17]} Qc4 {[%emt 0:00:02]} 92. Qd1+ {[%emt 0:00:17]} Kb2 {[%emt 0:00:12]} 93. Ke8 {[%emt 0:00:57]} Qe4+ {[%emt 0:01:37]} 94. Kf7 {[%emt 0:00:27]} Qc4+ {[%emt 0:00:37]} 95. Ke8 $1 {[%emt 0:00:29]} Qe6+ {[%emt 0:00:15]} 96. Kf8 {[%emt 0:00:06]} Qd7 {[%emt 0:00:25]} 97. Qe2+ {[%emt 0:00:15]} Kb3 {[%emt 0:00:05]} 98. Qd1+ {[%emt 0:00:24]} Kc4 {[%emt 0:01:38]} 99. Qe2+ {[%emt 0:00:45]} Kc5 {[%emt 0:00:10]} 100. Qe3+ {[%emt 0:01:02]} Bd4 {[%emt 0:00:03]} 101. Qa3+ {[%emt 0:00:25]} Kd5 {[%emt 0:00:04]} 102. Qf3+ {[%emt 0:00:37]} Kxd6 {[%emt 0:00:14]} 103. Qa3+ {[%emt 0:00:30]} Bc5 {[%emt 0:00:16]} 104. Qg3+ {[%emt 0:00:23]} Ke6+ {[%emt 0:00:06]} 105. Kg8 {[%emt 0:00:06]} Qf7+ {[%emt 0:00:03]} 0-1

[Event "US Masters 2022"]
[Site "Charlotte"]
[Date "2022.11.27"]
[Round "7.11"]
[White "Mishra, Abhimanyu"]
[Black "Mandizha, Farai"]
[Result "0-1"]
[ECO "D78"]
[WhiteElo "2549"]
[BlackElo "2359"]
[Annotator "TA"]
[PlyCount "92"]
[EventDate "2022.11.23"]
[EventType "swiss"]
[EventCountry "USA"]
[SourceTitle "playchess.com"]
[Source "ChessBase"]
[SourceQuality "1"]
[TimeControl "5400+30"]

{[%evp 11,92,8,19,-7,43,36,39,44,52,42,18,-12,-12,0,0,-41,-41,-37,-42,-97,-79,-102,-112,-93,0,-85,-62,-90,-97,-104,-112,-107,-114,-122,-115,-201,-31,-314,-306,-289,-317,-382,-383,-379,-365,-559,-551,-997,-1023,-2291,-2105,-2508,-2214,-29960,-29964,-29966,-29967,-5297,-1481,-1140,-1059,-822,-813,-29976,-29977,-29980,-29979,-29990,-29991,-29993,-29990,-29992,-29983,-29992,-29992,-29993,-29993,-29993,-29994,-29995,-29996,-29997,-639]} 1. d4 {[%emt 0:00:02]} Nf6 {[%emt 0:04:09]} 2. c4 {[%emt 0:00:08]} g6 {[%emt 0:01:15]} 3. g3 {[%emt 0:00:27]} c6 {[%emt 0:01:42]} 4. Bg2 {[%emt 0:00:13]} d5 {[%emt 0:00:18]} 5. Nf3 {[%emt 0:00:31]} Bg7 {[%emt 0:00:37]} 6. O-O {[%emt 0:00:44]} O-O {[%emt 0:00:42]} 7. a4 {[%emt 0:00:19] D78: Fianchetto Grünfeld: 6 0-0 c6.} Ne4 {[%emt 0:10:26]} (7... Be6 $11) 8. Nc3 $14 {[%emt 0:07:01]} Nxc3 {[%emt 0:02:35]} 9. bxc3 {[%emt 0:00:02] White is slightly better.} dxc4 {[%emt 0:00:28][%cal Oc6c5]} 10. a5 {[%emt 0:07:19] Against c5} c5 {[%emt 0:06:45] [#]} 11. Bf4 $146 {[%emt 0:14:34]} (11. Qa4 $5 {[%cal Ra4c4]}) ({Predecessor:} 11. Qa4 cxd4 12. Nxd4 e5 13. Nc2 Qc7 14. Nb4 Be6 15. a6 Nxa6 16. Nxa6 bxa6 17. Bxa8 Rxa8 18. Qxa6 {1-0 (44) Javakhishvili,L (2476)-Antova,G (2269) Prague 2022}) 11... cxd4 {[%emt 0:12:48]} 12. cxd4 {[%emt 0:00:21]} Nc6 $36 {[%emt 0:03:49][%cal Oc8e6][%mdl 2048] Black has the initiative.} 13. a6 {[%emt 0:03:59]} b5 {[%emt 0:07:42][%cal Oc8e6] And now ...Be6! would win.} (13... bxa6 14. Ne5 Nxd4 15. Bxa8 $11) 14. Ne5 {[%emt 0:11:47]} Nxe5 {[%emt 0:00:11]} 15. Bxa8 {[%emt 0:00:18]} ({Better is} 15. dxe5 $15 Bf5 16. Bxa8 Qxa8 17. f3) 15... Bh3 $1 $17 {[%emt 0:00:20][%csl LRa8,LRf1]} 16. Bg2 {[%emt 0:01:16]} Bxg2 {[%emt 0:00:56]} 17. Kxg2 {[%emt 0:00:05]} Qa8+ {[%emt 0:00:47]} (17... Nc6 $17 18. e3 b4) 18. Kg1 {[%emt 0:10:01]} (18. f3 $11 {remains equal.} Nc6 19. d5) 18... Nc6 {[%emt 0:03:35]} 19. e3 {[%emt 0:00:29]} e5 {[%emt 0:00:52]} 20. dxe5 {[%emt 0:04:20]} Nxe5 {[%emt 0:00:42]} 21. Bxe5 {[%emt 0:01:40]} Bxe5 {[%emt 0:00:02]} 22. Rb1 {[%emt 0:13:01] [#]} Qc6 {[%emt 0:01:07] Black is more active.} 23. Qd2 {[%emt 0:00:59]} (23. e4 $17) 23... Rb8 $2 {[%emt 0:03:56]} ({Resist} 23... Qxa6 24. Qd5 Bg7 25. Rxb5 $16 (25. Qxb5 Qc8 $16)) (23... c3 $19 24. Qa2 Rb8) 24. Rfc1 $2 {[%emt 0:07:14][%mdl 8192] [#] This costs White the game.} (24. Rfd1 $1 $15 Qxa6 25. Qd7) 24... c3 $1 $19 {[%emt 0:13:34]} ({Not} 24... Qxa6 25. Qd5 Bc7 26. Qc5 $11) 25. Qd3 {[%emt 0:00:22]} Qxa6 {[%emt 0:03:36]} 26. Rxc3 {[%emt 0:00:28]} Bxc3 {[%emt 0:00:24]} 27. Qxc3 {[%emt 0:00:01][%mdl 4096] Endgame KQR-KQR} Qb6 {[%emt 0:01:21]} 28. Rb4 {[%emt 0:04:52]} (28. Qd4 {was necessary.} Qxd4 29. exd4) 28... a5 {[%emt 0:00:25]} 29. Rf4 {[%emt 0:00:20]} b4 {[%emt 0:01:09]} 30. Qc4 {[%emt 0:00:12]} Qb7 {[%emt 0:01:02] White must now prevent ...b3.} 31. Qb3 {[%emt 0:01:41]} a4 {[%emt 0:00:44]} 32. Qxa4 {[%emt 0:04:46]} b3 {[%emt 0:00:04]} 33. Rd4 {[%emt 0:00:17]} b2 {[%emt 0:00:47]} 34. Rd1 {[%emt 0:00:04]} b1=Q {[%emt 0:00:42]} (34... Rc8 $142 35. Qd4 Rc1) 35. Rxb1 {[%emt 0:00:03]} Qxb1+ {[%emt 0:00:14]} 36. Kg2 {[%emt 0:00:04]} Qb7+ {[%emt 0:00:26]} 37. f3 {[%emt 0:00:16]} Qd5 {[%emt 0:00:29] Black mates.} 38. Qc2 {[%emt 0:00:26]} Ra8 {[%emt 0:00:15]} 39. Kh3 {[%emt 0:00:45]} Qxf3 {[%emt 0:00:28]} 40. e4 {[%emt 0:00:31]} Re8 {[%emt 0:00:41]} 41. Qc6 {[%emt 0:00:48]} Qxe4 {[%emt 0:00:14]} ({Inferior is} 41... Rxe4 42. Qxg6+ Kf8 43. Qh6+ Ke8 44. Qc6+ Kf8 45. Qh6+ Kg8 46. Qg5+ Kh8 47. Qd8+ Kg7 48. Qg5+ Kf8 49. Qh6+ $11) 42. Qc3 {[%emt 0:01:32]} h5 {[%emt 0:00:23]} 43. Qf6 {[%emt 0:00:36]} Rc8 {[%emt 0:01:07]} 44. Qg5 {[%emt 0:01:38]} Rc2 {[%emt 0:00:37]} 45. Qd8+ {[%emt 0:00:28]} Kh7 {[%emt 0:00:11][%csl Gh5][%cal Re4g4]} 46. Qd7 {[%emt 0:00:17]} Qg4+ {[%emt 0:00:32] Weighted Error Value: White=1.03/Black=0.22 (precise)} (46... Kh6 $142 47. Qc8 Rxc8 48. g4 Qxg4#) 0-1